Workbook

Sheet EISAGOGI
A1: log([c]) | B1: pH
A2: 1 | B2: 1
A3: 2 | B3: 2
A4: 3 | B4: 3
A5: 4 | B5: 4
A6: 5 | B6: 5
A7: 6 | B7: 6
A8: 7 | B8: 7
A9: 8 | B9: 8
A10: 9 | B10: 9
A11: 10 | B11: 10
A12: 11 | B12: 11
A13: 12 | B13: 12
A14: 13 | B14: 13
A15: 14 | B15: 14

Sheet PHLOGC

Sheet nero
A1: Log(c) | B1: pH water dissociation | CV1: 25 | CW1: Graph of the dissolution of strong acid, Temperature = 25
A2: 1 | B2: 1
A3: 2 | B3: 2
A4: 3 | B4: 2.999999996
A5: 4 | B5: 3.999999565
A6: 5 | B6: 4.999956531
A7: 6 | B7: 5.995716344
A8: 7 | B8: 6.790885889
A9: 8 | B9: 6.978076985
A10: 9 | B10: 6.997600931
A11: 10 | B11: 6.999554218
A12: 11 | B12: 6.999749548
A13: 12 | B13: 6.999769081
A14: 13 | B14: 6.999771034
A15: 14 | B15: 6.99977123

Sheet Dedomena

Sheet phvsc
E1: 5.743502933 | F1: 2.047081253e-15 | G1: 3.19350346e-07 | H1: 4.15898125e-11 | I1: 7.344432411 | U1: DATA | AX1: 6
E2: pH (ALL FACTORS) | F2: kw | G2: k1 | H2: k2 | I2: pH (WATER | T2: 0 | U2: 0.1
T3: 1 | U3: 1.01
T4: 2 | U4: 2.02
T5: 3 | U5: 3.02
A6: pH=-log( Cacid) | B6: pH when we consider only the break of water | C6: pH when we consider the break of water and CO2 | D6: PH data | T6: 5 | U6: 5.01
A7: 0 | B7: -8.678947199e-16 | C7: -1.665200669e-12 | E7: =-LOG((B7+SQRT(B7^2+4*kw))/2) -> 7.344432464 | T7: 6 | U7: 5.55
A8: 0.1 | B8: 0.1 | C8: 0.1 | T8: 7 | U8: 5.6
A9: 0.2 | B9: 0.2 | C9: 0.2 | T9: 10 | U9: 5.6
A10: 0.3 | B10: 0.3 | C10: 0.3
A11: 0.4 | B11: 0.4 | C11: 0.4
A12: 0.5 | B12: 0.5 | C12: 0.5
A13: 0.6 | B13: 0.6 | C13: 0.6
A14: 0.7 | B14: 0.7 | C14: 0.7
A15: 0.8 | B15: 0.8 | C15: 0.7999999999
A16: 0.9 | B16: 0.9 | C16: 0.8999999999
A17: 1 | B17: 1 | C17: 0.9999999998
A18: 1.1 | B18: 1.1 | C18: 1.1
A19: 1.2 | B19: 1.2 | C19: 1.2 | F19: PH äéáëýìáôïò HCl ìå CO2
A20: 1.3 | B20: 1.3 | C20: 1.299999999
A21: 1.4 | B21: 1.4 | C21: 1.399999999
A22: 1.5 | B22: 1.5 | C22: 1.499999998
A23: 1.6 | B23: 1.6 | C23: 1.599999997
A24: 1.7 | B24: 1.7 | C24: 1.699999996
A25: 1.8 | B25: 1.8 | C25: 1.799999993
A26: 1.9 | B26: 1.9 | C26: 1.899999989
A27: 2 | B27: 2 | C27: 1.999999983
A28: 2.1 | B28: 2.1 | C28: 2.099999974
A29: 2.2 | B29: 2.2 | C29: 2.199999958
A30: 2.3 | B30: 2.3 | C30: 2.299999934
A31: 2.4 | B31: 2.4 | C31: 2.399999895
A32: 2.5 | B32: 2.5 | C32: 2.499999833
A33: 2.6 | B33: 2.6 | C33: 2.599999736
A34: 2.7 | B34: 2.7 | C34: 2.699999582
A35: 2.8 | B35: 2.8 | C35: 2.799999337
A36: 2.9 | B36: 2.899999999 | C36: 2.89999895
A37: 3 | B37: 2.999999999 | C37: 2.999998335
A38: 3.1 | B38: 3.099999999 | C38: 3.099997362
A39: 3.2 | B39: 3.199999998 | C39: 3.199995819
A40: 3.3 | B40: 3.299999996 | C40: 3.299993375
A41: 3.4 | B41: 3.399999994 | C41: 3.399989502
A42: 3.5 | B42: 3.499999991 | C42: 3.499983366
A43: 3.6 | B43: 3.599999986 | C43: 3.599973644
A44: 3.7 | B44: 3.699999978 | C44: 3.699958245
A45: 3.8 | B45: 3.799999965 | C45: 3.799933856
A46: 3.9 | B46: 3.899999944 | C46: 3.899895237
A47: 4 | B47: 3.999999911 | C47: 3.999834105
A48: 4.1 | B48: 4.099999859 | C48: 4.099737378
A49: 4.2 | B49: 4.199999777 | C49: 4.199584422
A50: 4.3 | B50: 4.299999646 | C50: 4.299342756
A51: 4.4 | B51: 4.399999439 | C51: 4.398961401
A52: 4.5 | B52: 4.499999111 | C52: 4.498360688
A53: 4.6 | B53: 4.599998591 | C53: 4.597416909
A54: 4.7 | B54: 4.699997767 | C54: 4.695939812
A55: 4.8 | B55: 4.799996461 | C55: 4.793640981
A56: 4.9 | B56: 4.899994391 | C56: 4.890092461
A57: 5 | B57: 4.99999111 | C57: 4.984679064
A58: 5.1 | B58: 5.09998591 | C58: 5.076556399
A59: 5.2 | B59: 5.19997767 | C59: 5.164639659
A60: 5.3 | B60: 5.299964611 | C60: 5.247658498
A61: 5.4 | B61: 5.399943916 | C61: 5.324304035
A62: 5.5 | B62: 5.499911124 | C62: 5.39345061
A63: 5.6 | B63: 5.599859166 | C63: 5.454375407
A64: 5.7 | B64: 5.699776856 | C64: 5.506879403
A65: 5.8 | B65: 5.7996465 | C65: 5.551265178
A66: 5.9 | B66: 5.89944014 | C66: 5.588206348
A67: 6 | B67: 5.999113681 | C67: 5.618581861
A68: 6.1 | B68: 6.098597781 | C68: 5.643333221
A69: 6.2 | B69: 6.197783873 | C69: 5.663367773
A70: 6.3 | B70: 6.296503182 | C70: 5.679505807
A71: 6.4 | B71: 6.394496223 | C71: 5.69245928
A72: 6.5 | B72: 6.49137084 | C72: 5.702829795
A73: 6.6 | B73: 6.586549859 | C73: 5.711116649
A74: 6.7 | B74: 6.679217214 | C74: 5.717729179
A75: 6.8 | B75: 6.768285942 | C75: 5.723000123
A76: 6.9 | B76: 6.852428669 | C76: 5.727198333
A77: 7 | B77: 6.930213361 | C77: 5.730540112
A78: 7.1 | B78: 7.000347482 | C78: 5.733198941
A79: 7.2 | B79: 7.061954047 | C79: 5.735313638
A80: 7.3 | B80: 7.114750337 | C80: 5.736995097
A81: 7.4 | B81: 7.159046524 | C81: 5.738331788
A82: 7.5 | B82: 7.195592957 | C82: 5.739394224
A83: 7.6 | B83: 7.225373932 | C83: 5.740238563
A84: 7.7 | B84: 7.249431339 | C84: 5.740909507
A85: 7.8 | B85: 7.268750755 | C85: 5.741442622
A86: 7.9 | B86: 7.284204852 | C86: 5.741866194
A87: 8 | B87: 7.296535633 | C87: 5.742202714
A88: 8.1 | B88: 7.306358276 | C88: 5.742470063
A89: 8.2 | B89: 7.314174789 | C89: 5.742682451
A90: 8.3 | B90: 7.32039077 | C90: 5.742851173
A91: 8.4 | B91: 7.32533187 | C91: 5.742985205
A92: 8.5 | B92: 7.329258518 | C92: 5.743091676
A93: 8.6 | B93: 7.332378464 | C93: 5.743176253
A94: 8.7 | B94: 7.334857177 | C94: 5.743243438
A95: 8.8 | B95: 7.336826315 | C95: 5.743296806
A96: 8.9 | B96: 7.33839057 | C96: 5.743339199
A97: 9 | B97: 7.339633159 | C97: 5.743372874
A98: 9.1 | B98: 7.340620211 | C98: 5.743399623
A99: 9.2 | B99: 7.341404268 | C99: 5.743420871
A100: 9.3 | B100: 7.342027075 | C100: 5.743437749
A101: 9.4 | B101: 7.342521791 | C101: 5.743451155
A102: 9.5 | B102: 7.34291476 | C102: 5.743461805
A103: 9.6 | B103: 7.343226907 | C103: 5.743470264
A104: 9.7 | B104: 7.343474854 | C104: 5.743476983
A105: 9.8 | B105: 7.343671806 | C105: 5.743482321
A106: 9.9 | B106: 7.343828251 | C106: 5.74348656
A107: 10 | B107: 7.34395252 | C107: 5.743489928
A108: 10.1 | B108: 7.34405123 | C108: 5.743492603
A109: 10.2 | B109: 7.344129638 | C109: 5.743494728
A110: 10.3 | B110: 7.34419192 | C110: 5.743496416
A111: 10.4 | B111: 7.344241392 | C111: 5.743497756
A112: 10.5 | B112: 7.344280689 | C112: 5.743498821
A113: 10.6 | B113: 7.344311904 | C113: 5.743499667
A114: 10.7 | B114: 7.344336699 | C114: 5.743500339
A115: 10.8 | B115: 7.344356394 | C115: 5.743500873
A116: 10.9 | B116: 7.344372039 | C116: 5.743501297
A117: 11 | B117: 7.344384465 | C117: 5.743501634
A118: 11.1 | B118: 7.344394336 | C118: 5.743501901
A119: 11.2 | B119: 7.344402177 | C119: 5.743502114
A120: 11.3 | B120: 7.344408405 | C120: 5.743502282
A121: 11.4 | B121: 7.344413353 | C121: 5.743502416
A122: 11.5 | B122: 7.344417282 | C122: 5.743502523
A123: 11.6 | B123: 7.344420404 | C123: 5.743502608
A124: 11.7 | B124: 7.344422883 | C124: 5.743502675
A125: 11.8 | B125: 7.344424853 | C125: 5.743502728
A126: 11.9 | B126: 7.344426417 | C126: 5.743502771
A127: 12 | B127: 7.34442766 | C127: 5.743502804
A128: 12.1 | B128: 7.344428647 | C128: 5.743502831
A129: 12.2 | B129: 7.344429431 | C129: 5.743502852
A130: 12.3 | B130: 7.344430054 | C130: 5.743502869
A131: 12.4 | B131: 7.344430549 | C131: 5.743502882
A132: 12.5 | B132: 7.344430942 | C132: 5.743502893
A133: 12.6 | B133: 7.344431254 | C133: 5.743502902
A134: 12.7 | B134: 7.344431502 | C134: 5.743502908
A135: 12.8 | B135: 7.344431699 | C135: 5.743502914
A136: 12.9 | B136: 7.344431855 | C136: 5.743502918
A137: 13 | B137: 7.344431979 | C137: 5.743502921
A138: 13.1 | B138: 7.344432078 | C138: 5.743502924
A139: 13.2 | B139: 7.344432157 | C139: 5.743502926
A140: 13.3 | B140: 7.344432219 | C140: 5.743502928
A141: 13.4 | B141: 7.344432268 | C141: 5.743502929
A142: 13.5 | B142: 7.344432308 | C142: 5.74350293
A143: 13.6 | B143: 7.344432339 | C143: 5.743502931
A144: 13.7 | B144: 7.344432364 | C144: 5.743502932
A145: 13.8 | B145: 7.344432383 | C145: 5.743502932
A146: 13.9 | B146: 7.344432399 | C146: 5.743502933
A147: 14 | B147: 7.344432411 | C147: 5.743502933

Sheet Base
AX1: 5
F4: 2.835647578e-13 | G4: 7.743312215e-07 | H4: 1.008431358e-10 | I4: 1.871481793e-15 | J4: 3.145336707e-07 | K4: 4.096252456e-11
I5: kw | J5: k1 | K5: k2
A6: C base | B6: ph base as -log(kw/c base) | C6: ph base with water dissociation | D6: ph base with water dissociation and CO2 | E6: ph base in25°
A7: 0 | B7: 14.72781439 | C7: 14.72414085 | D7: 14.72779376 | E7: 13.9995425 | F7: 0
A8: 0.1 | B8: 14.62781439 | C8: 14.63237048 | D8: 14.62778842 | E8: 12.9995425 | F8: 1
A9: 0.2 | B9: 14.52781439 | C9: 14.52322601 | D9: 14.52778169 | E9: 11.9995425 | F9: 2
A10: 0.3 | B10: 14.42781439 | C10: 14.42954496 | D10: 14.42777322 | E10: 10.9995425 | F10: 3
A11: 0.4 | B11: 14.32781439 | C11: 14.32620084 | D11: 14.32776256 | E11: 9.999542503 | F11: 4
A12: 0.5 | B12: 14.22781439 | C12: 14.22827016 | D12: 14.22774914 | E12: 8.999542503 | F12: 5
A13: 0.6 | B13: 14.12781439 | C13: 14.12851497 | D13: 14.12773225 | E13: 7.999542503 | F13: 6
A14: 0.7 | B14: 14.02781439 | C14: 14.02773306 | D14: 14.02771098 | E14: 6.999542503 | F14: 7
A15: 0.8 | B15: 13.92781439 | C15: 13.9277502 | D15: 13.9276842 | E15: 5.999542503 | F15: 8
A16: 0.9 | B16: 13.82781439 | C16: 13.82748497 | D16: 13.82765049 | E16: 4.999542503 | F16: 9
A17: 1 | B17: 13.72781439 | C17: 13.72782881 | D17: 13.72760806 | E17: 3.999542503 | F17: 10
A18: 1.1 | B18: 13.62781439 | C18: 13.62786997 | D18: 13.62755463 | E18: 2.999542503 | F18: 11
A19: 1.2 | B19: 13.52781439 | C19: 13.52777363 | D19: 13.52748737 | E19: 1.999542503 | F19: 12
A20: 1.3 | B20: 13.42781439 | C20: 13.42780641 | D20: 13.42740269 | E20: 0.9995425026 | F20: 13
A21: 1.4 | B21: 13.32781439 | C21: 13.32780045 | D21: 13.32729609 | E21: -0.0004574974104 | F21: 14
A22: 1.5 | B22: 13.22781439 | C22: 13.22781164 | D22: 13.22716189
A23: 1.6 | B23: 13.12781439 | C23: 13.12781669 | D23: 13.12699293
A24: 1.7 | B24: 13.02781439 | C24: 13.02781337 | D24: 13.02678022
A25: 1.8 | B25: 12.92781439 | C25: 12.92781399 | D25: 12.92651243
A26: 1.9 | B26: 12.82781439 | C26: 12.82781426 | D26: 12.8261753
A27: 2 | B27: 12.72781439 | C27: 12.72781472 | D27: 12.72575086
A28: 2.1 | B28: 12.62781439 | C28: 12.62781401 | D28: 12.6252165
A29: 2.2 | B29: 12.52781439 | C29: 12.52781427 | D29: 12.52454376
A30: 2.3 | B30: 12.42781439 | C30: 12.42781448 | D30: 12.42369677
A31: 2.4 | B31: 12.32781439 | C31: 12.32781448 | D31: 12.32263042
A32: 2.5 | B32: 12.22781439 | C32: 12.22781434 | D32: 12.22128786
A33: 2.6 | B33: 12.12781439 | C33: 12.12781441 | D33: 12.11959753
A34: 2.7 | B34: 12.02781439 | C34: 12.02781438 | D34: 12.01746936
A35: 2.8 | B35: 11.92781439 | C35: 11.92781439 | D35: 11.91478993
A36: 2.9 | B36: 11.82781439 | C36: 11.82781439 | D36: 11.81141651
A37: 3 | B37: 11.72781439 | C37: 11.72781439 | D37: 11.70716955
A38: 3.1 | B38: 11.62781439 | C38: 11.62781439 | D38: 11.60182333
A39: 3.2 | B39: 11.52781439 | C39: 11.5278144 | D39: 11.49509444
A40: 3.3 | B40: 11.42781439 | C40: 11.4278144 | D40: 11.38662762
A41: 3.4 | B41: 11.32781439 | C41: 11.3278144 | D41: 11.27597874
A42: 3.5 | B42: 11.22781439 | C42: 11.2278144 | D42: 11.16259452
A43: 3.6 | B43: 11.12781439 | C43: 11.12781441 | D43: 11.04578854
A44: 3.7 | B44: 11.02781439 | C44: 11.02781441 | D44: 10.92471216
A45: 3.8 | B45: 10.92781439 | C45: 10.92781443 | D45: 10.79831437
A46: 3.9 | B46: 10.82781439 | C46: 10.82781445 | D46: 10.66527214
A47: 4 | B47: 10.72781439 | C47: 10.72781447 | D47: 10.52383996
A48: 4.1 | B48: 10.62781439 | C48: 10.62781452 | D48: 10.37149263
A49: 4.2 | B49: 10.52781439 | C49: 10.5278146 | D49: 10.20406797
A50: 4.3 | B50: 10.42781439 | C50: 10.42781472 | D50: 10.01364785
A51: 4.4 | B51: 10.32781439 | C51: 10.32781491 | D51: 9.782538044
A52: 4.5 | B52: 10.22781439 | C52: 10.22781521 | D52: 9.459233094
A53: 4.6 | B53: 10.12781439 | C53: 10.12781568 | D53: 8.72705706
A54: 4.7 | B54: 10.02781439 | C54: 10.02781644 | D54: 7.223951289
A55: 4.8 | B55: 9.927814394 | C55: 9.927817629 | D55: 6.815522686
A56: 4.9 | B56: 9.827814394 | C56: 9.827819522 | D56: 6.573340328
A57: 5 | B57: 9.727814394 | C57: 9.727822521 | D57: 6.393549936
A58: 5.1 | B58: 9.627814394 | C58: 9.627827275 | D58: 6.248581845
A59: 5.2 | B59: 9.527814394 | C59: 9.527834808 | D59: 6.127798713
A60: 5.3 | B60: 9.427814394 | C60: 9.427846747 | D60: 6.026355459
A61: 5.4 | B61: 9.327814394 | C61: 9.327865667 | D61: 5.941597193
A62: 5.5 | B62: 9.227814394 | C62: 9.227895648 | D62: 5.871562366
A63: 5.6 | B63: 9.127814394 | C63: 9.127943152 | D63: 5.814391488
A64: 5.7 | B64: 9.027814394 | C64: 9.028018409 | D64: 5.768205847
A65: 5.8 | B65: 8.927814394 | C65: 8.928137604 | D65: 5.731182646
A66: 5.9 | B66: 8.827814394 | C66: 8.828326314 | D66: 5.701657519
A67: 6 | B67: 8.727814394 | C67: 8.728624896 | D67: 5.678186288
A68: 6.1 | B68: 8.627814394 | C68: 8.62909686 | D68: 5.659560393
A69: 6.2 | B69: 8.527814394 | C69: 8.529841743 | D69: 5.644792145
A70: 6.3 | B70: 8.427814394 | C70: 8.431014532 | D70: 5.633086152
A71: 6.4 | B71: 8.327814394 | C71: 8.332854131 | D71: 5.623807422
A72: 6.5 | B72: 8.227814394 | C72: 8.235723019 | D72: 5.616451481
A73: 6.6 | B73: 8.127814394 | C73: 8.140157941 | D73: 5.610618548
A74: 6.7 | B74: 8.027814394 | C74: 8.046924773 | D74: 5.605992157
A75: 6.8 | B75: 7.927814394 | C75: 7.957057482 | D75: 5.602321869
A76: 6.9 | B76: 7.827814394 | C76: 7.871843537 | D76: 5.599409473
A77: 7 | B77: 7.727814394 | C77: 7.792710882 | D77: 5.597098042
A78: 7.1 | B78: 7.627814394 | C78: 7.7210016 | D78: 5.595263278
A79: 7.2 | B79: 7.527814394 | C79: 7.657692428 | D79: 5.593806691
A80: 7.3 | B80: 7.427814394 | C80: 7.603187631 | D80: 5.592650206
A81: 7.4 | B81: 7.327814394 | C81: 7.55728404 | D81: 5.591731913
A82: 7.5 | B82: 7.227814394 | C82: 7.519301069 | D82: 5.591002699
A83: 7.6 | B83: 7.127814394 | C83: 7.488284445 | D83: 5.590423599
A84: 7.7 | B84: 7.027814394 | C84: 7.46319253 | D84: 5.58996369
A85: 7.8 | B85: 6.927814394 | C85: 7.443022788 | D85: 5.589598425
A86: 7.9 | B86: 6.827814394 | C86: 7.42687823 | D86: 5.589308319
A87: 8 | B87: 6.727814394 | C87: 7.413991231 | D87: 5.589077902
A88: 8.1 | B88: 6.627814394 | C88: 7.403722801 | D88: 5.588894889
A89: 8.2 | B89: 6.527814394 | C89: 7.395550173 | D89: 5.588749525
A90: 8.3 | B90: 6.427814394 | C90: 7.389050303 | D90: 5.588634064
A91: 8.4 | B91: 6.327814394 | C91: 7.38388319 | D91: 5.588542354
A92: 8.5 | B92: 6.227814394 | C92: 7.379776756 | D92: 5.588469508
A93: 8.6 | B93: 6.127814394 | C93: 7.376513871 | D93: 5.588411645
A94: 8.7 | B94: 6.027814394 | C94: 7.373921553 | D94: 5.588365685
A95: 8.8 | B95: 5.927814394 | C95: 7.371862143 | D95: 5.588329177
A96: 8.9 | B96: 5.827814394 | C96: 7.370226165 | D96: 5.588300179
A97: 9 | B97: 5.727814394 | C97: 7.368926597 | D97: 5.588277145
A98: 9.1 | B98: 5.627814394 | C98: 7.367894281 | D98: 5.588258848
A99: 9.2 | B99: 5.527814394 | C99: 7.367074267 | D99: 5.588244315
A100: 9.3 | B100: 5.427814394 | C100: 7.366422898 | D100: 5.588232771
A101: 9.4 | B101: 5.327814394 | C101: 7.365905494 | D101: 5.588223601
A102: 9.5 | B102: 5.227814394 | C102: 7.365494502 | D102: 5.588216317
A103: 9.6 | B103: 5.127814394 | C103: 7.36516804 | D103: 5.588210531
A104: 9.7 | B104: 5.027814394 | C104: 7.36490872 | D104: 5.588205935
A105: 9.8 | B105: 4.927814394 | C105: 7.364702735 | D105: 5.588202285
A106: 9.9 | B106: 4.827814394 | C106: 7.364539116 | D106: 5.588199385
A107: 10 | B107: 4.727814394 | C107: 7.364409148 | D107: 5.588197082
A108: 10.1 | B108: 4.627814394 | C108: 7.364305911 | D108: 5.588195252
A109: 10.2 | B109: 4.527814394 | C109: 7.364223907 | D109: 5.588193799
A110: 10.3 | B110: 4.427814394 | C110: 7.364158768 | D110: 5.588192645
A111: 10.4 | B111: 4.327814394 | C111: 7.364107027 | D111: 5.588191728
A112: 10.5 | B112: 4.227814394 | C112: 7.364065928 | D112: 5.588190999
A113: 10.6 | B113: 4.127814394 | C113: 7.364033281 | D113: 5.588190421
A114: 10.7 | B114: 4.027814394 | C114: 7.364007349 | D114: 5.588189961
A115: 10.8 | B115: 3.927814394 | C115: 7.363986751 | D115: 5.588189596
A116: 10.9 | B116: 3.827814394 | C116: 7.363970389 | D116: 5.588189306
A117: 11 | B117: 3.727814394 | C117: 7.363957392 | D117: 5.588189076
A118: 11.1 | B118: 3.627814394 | C118: 7.363947068 | D118: 5.588188893
A119: 11.2 | B119: 3.527814394 | C119: 7.363938868 | D119: 5.588188747
A120: 11.3 | B120: 3.427814394 | C120: 7.363932354 | D120: 5.588188632
A121: 11.4 | B121: 3.327814394 | C121: 7.36392718 | D121: 5.58818854
A122: 11.5 | B122: 3.227814394 | C122: 7.36392307 | D122: 5.588188467
A123: 11.6 | B123: 3.127814394 | C123: 7.363919805 | D123: 5.58818841
A124: 11.7 | B124: 3.027814394 | C124: 7.363917212 | D124: 5.588188364
A125: 11.8 | B125: 2.927814394 | C125: 7.363915152 | D125: 5.588188327
A126: 11.9 | B126: 2.827814394 | C126: 7.363913516 | D126: 5.588188298
A127: 12 | B127: 2.727814394 | C127: 7.363912216 | D127: 5.588188275
A128: 12.1 | B128: 2.627814394 | C128: 7.363911184 | D128: 5.588188257
A129: 12.2 | B129: 2.527814394 | C129: 7.363910364 | D129: 5.588188242
A130: 12.3 | B130: 2.427814394 | C130: 7.363909713 | D130: 5.588188231
A131: 12.4 | B131: 2.327814394 | C131: 7.363909195 | D131: 5.588188222
A132: 12.5 | B132: 2.227814394 | C132: 7.363908784 | D132: 5.588188214
A133: 12.6 | B133: 2.127814394 | C133: 7.363908458 | D133: 5.588188208
A134: 12.7 | B134: 2.027814394 | C134: 7.363908198 | D134: 5.588188204
A135: 12.8 | B135: 1.927814394 | C135: 7.363907992 | D135: 5.5881882
A136: 12.9 | B136: 1.827814394 | C136: 7.363907829 | D136: 5.588188197
A137: 13 | B137: 1.727814394 | C137: 7.363907699 | D137: 5.588188195
A138: 13.1 | B138: 1.627814394 | C138: 7.363907596 | D138: 5.588188193
A139: 13.2 | B139: 1.527814394 | C139: 7.363907514 | D139: 5.588188192
A140: 13.3 | B140: 1.427814394 | C140: 7.363907448 | D140: 5.588188191
A141: 13.4 | B141: 1.327814394 | C141: 7.363907397 | D141: 5.58818819
A142: 13.5 | B142: 1.227814394 | C142: 7.363907356 | D142: 5.588188189
A143: 13.6 | B143: 1.127814394 | C143: 7.363907323 | D143: 5.588188188
A144: 13.7 | B144: 1.027814394 | C144: 7.363907297 | D144: 5.588188188
A145: 13.8 | B145: 0.9278143936 | C145: 7.363907276 | D145: 5.588188188
A146: 13.9 | B146: 0.8278143936 | C146: 7.36390726 | D146: 5.588188187
A147: 14 | B147: 0.7278143936 | C147: 7.363907247 | D147: 5.588188187

Sheet Titration
D1: 50 | E1: 0.8 | F1: 0.5 | G1: 0.002 | H1: 50
A2: Change the values and press the button Graph Renewal | D2: Initial volume of acid solution | E2: Initial acid concentration | F2: Base Concentration | G2: Acid dissociation constant Ka | H2: Temperature
F3: cc base | G3: pH of solution
E4: 0.03901249805 | F4: 0 | G4: 1.40879624
E5: 0.02954288216 | F5: 2 | G5: 1.529547138
E6: 0.02277072329 | F6: 4 | G6: 1.642623174 | I6: CHANGE THE VALUES AND PRESS THE BUTTON GRAPH RENEWAL
E7: 0.01796878811 | F7: 6 | G7: 1.745481212
E8: 0.01452129591 | F8: 8 | G8: 1.837994625
E9: 0.01198780352 | F9: 10 | G9: 1.921260384
E10: 0.010075997 | F10: 12 | G10: 1.99671197
E11: 0.00859583887 | F11: 14 | G11: 2.065711734
E12: 0.007422945422 | F12: 16 | G12: 2.129423733
E13: 0.006474346832 | F13: 18 | G13: 2.188804039
E14: 0.005693389737 | F14: 20 | G14: 2.244629086
E15: 0.005040448601 | F15: 22 | G15: 2.297530809
E16: 0.004487161527 | F16: 24 | G16: 2.348028297
E17: 0.004012789795 | F17: 26 | G17: 2.39655359
E18: 0.003601869852 | F18: 28 | G18: 2.443471984
E19: 0.003242665542 | F19: 30 | G19: 2.489097843
E20: 0.002926125871 | F20: 32 | G20: 2.533706996
E21: 0.002645168853 | F21: 34 | G21: 2.5775466
E22: 0.002394180034 | F22: 36 | G22: 2.620843195
E23: 0.002168655105 | F23: 38 | G23: 2.663809511
E24: 0.001964941061 | F24: 40 | G24: 2.706650472
E25: 0.001780045892 | F25: 42 | G25: 2.749568801
E26: 0.001611496727 | F26: 44 | G26: 2.792770572
E27: 0.001457232727 | F27: 46 | G27: 2.836471084
E28: 0.001315523271 | F28: 48 | G28: 2.880901465
E29: 0.001184904765 | F29: 50 | G29: 2.926316554
E30: 0.001064131343 | F30: 52 | G30: 2.973004765
E31: 0.0009521360431 | F31: 54 | G31: 3.021300994
E32: 0.0008479999647 | F32: 56 | G32: 3.071604166
E33: 0.0007509275625 | F33: 58 | G33: 3.124401955
E34: 0.0006602267075 | F34: 60 | G34: 3.180306912
E35: 0.0005752924785 | F35: 62 | G35: 3.240111304
E36: 0.0004955938971 | F36: 64 | G36: 3.30487405
E37: 0.0004206630051 | F37: 66 | G37: 3.37606568
E38: 0.0003500858148 | F38: 68 | G38: 3.455825486
E39: 0.0002834947713 | F39: 70 | G39: 3.547454947
E40: 0.000220562439 | F40: 72 | G40: 3.656468444
E41: 0.0001609961889 | F41: 74 | G41: 3.793184404
E42: 0.0001045337056 | F42: 76 | G42: 3.980743654
E43: 5.093917268e-05 | F43: 78 | G43: 4.292948113
E44: 1.929190653e-08 | F44: 80 | G44: 7.714624851
E45: 7.607122733e-12 | F45: 82 | G45: 11.11877958
E46: 3.861191526e-12 | F46: 84 | G46: 11.41327866
E47: 2.612547556e-12 | F47: 86 | G47: 11.5829358
E48: 1.988225544e-12 | F48: 88 | G48: 11.70153435
E49: 1.613632332e-12 | F49: 90 | G49: 11.79219541
E50: 1.363903521e-12 | F50: 92 | G50: 11.86521635
E51: 1.185525798e-12 | F51: 94 | G51: 11.92608899
E52: 1.051742506e-12 | F52: 96 | G52: 11.97809057
E53: 9.476888338e-13 | F53: 98 | G53: 12.02333424
E54: 8.644458961e-13 | F54: 100 | G54: 12.06326218
E55: 7.963380378e-13 | F55: 102 | G55: 12.09890254
E56: 7.395814892e-13 | F56: 104 | G56: 12.13101397
E57: 6.915567173e-13 | F57: 106 | G57: 12.1601722
E58: 6.503926271e-13 | F58: 108 | G58: 12.18682439
E59: 6.147170822e-13 | F59: 110 | G59: 12.21132472
E60: 5.835009804e-13 | F60: 112 | G60: 12.23395841
E61: 5.559573612e-13 | F61: 114 | G61: 12.25495852
E62: 5.314741441e-13 | F62: 116 | G62: 12.27451786
E63: 5.095681078e-13 | F63: 118 | G63: 12.29279776
E64: 4.89852675e-13 | F64: 120 | G64: 12.30993452

Sheet buffer HAC
L1: 300 | AB1: 1000
AB2: 2
G7: =AB1/10000 -> 0.1
G8: C acetic initial
K9: x = moles of H(+) and y the moles of Ac(-)
K10: Newtrality condition the number of anios is equal to the number of cations
K11: Na(+) + x= kw/x + y
K12: we have: Na(+)=2,5
K13: Since Hac = 0,5 the total number of moles ofAc(-)=3 if are formed z moles Hac then
K14: y = 3- z
K15: Kahc=x*(3-z)/z | M15: z*kahc=(3-z)*x | O15: z(k+x)=3x | P15: z=3x/(k+x)
K16: 2,5+x=kw/x+3-3x/(K+x) | N16: F(x)=kw/x+0,5-3x/(K+x)-x
G17: rate | K17: We use a Newton Ramphson | N17: dF(x)/dx= -kw/x^2-3/(k+x)+3x/(K+x)^2-1
G18: of increase of [NaAC] | K18: numerical approximation
G19: =AB2/10000 -> 0.0002
K20: so z=0,5
K21: y=2,5
K22: kahc=x*2,5/3 | M22: x=kahc*3/2.5
G23: At 0 NaAc | L23: x0= | M23: =Kahc1*0.5/2.5 -> 3.52e-06 | O23: x | P23: F(x) | Q23: DF(x)/dx
G24: =E48 -> Initial pH =2,88 | L24: ph= | M24: =-LOG10(M23) -> 5.453457337 | O24: =M23 -> 3.52e-06 | P24: =kwww1/O24+0.5-3*O24/(Kahc1+O24)-O24 -> -3.517159091e-06 | Q24: =-kwww1/O24^2-3/(Kahc1+O24)+3*O24/(Kahc1+O24)^2-1 -> -118372.2129
M25: =-LOG10(O25) -> 5.453461002 | O25: =O24-P24/Q24 -> 3.519970287e-06 | P25: =kwww1/O25+0.5-3*O25/(Kahc1+O25)-O25 -> 4.948108604e-12 | Q25: =-kwww1/O25^2-3/(Kahc1+O25)+3*O25/(Kahc1+O25)^2-1 -> -118372.546
M26: =-LOG10(O26) -> 5.453461002 | O26: =O25-P25/Q25 -> 3.519970287e-06 | P26: =kwww1/O26+0.5-3*O26/(Kahc1+O26)-O26 -> -3.068461555e-17 | Q26: =-kwww1/O26^2-3/(Kahc1+O26)+3*O26/(Kahc1+O26)^2-1 -> -118372.546
O27: ="pH(exact)"&LOG10(O26) -> pH(exact)-5,45346100245987
F33: z`
P34: F(x)=kw/x+0,6-3x/(K+x)-x
H35: Now we have extra 0,1 mile H(+) and 0,1 mole Na(+) | P35: dF(x)/dx= -kw/x^2-3/(k+x)+3x/(K+x)^2-1
H36: Electrical Newtrality | K36: Να(+)+Η(+) = Cl (-)+Ac(-1)+OH(-)
K37: 2,5 + x= 0,1+y +kw/x | P37: x | Q37: F(x) | R37: DF(x)/dx
K38: y = 3-z | P38: =M23 -> 3.52e-06 | Q38: =kwww1/P38+0.6-3*P38/(Kahc1+P38)-P38 -> 0.09999648284 | R38: =-kwww1/P38^2-3/(Kahc1+P38)+3*P38/(Kahc1+P38)^2-1 -> -118372.2129
G39: Approximation | K39: ka = x*y/z | P39: =P38-Q38/R38 -> 4.364763145e-06 | Q39: =kwww1/P39+0.6-3*P39/(Kahc1+P39)-P39 -> 0.003845824854 | R39: =-kwww1/P39^2-3/(Kahc1+P39)+3*P39/(Kahc1+P39)^2-1 -> -109442.2074
G40: since we have added 0,1 mole Η(+) | K40: x=kw/x+3-z-2,5=kw/x+0,6-z | P40: =P39-Q39/R39 -> 4.399903379e-06 | Q40: =kwww1/P40+0.6-3*P40/(Kahc1+P40)-P40 -> 6.142843147e-06 | R40: =-kwww1/P40^2-3/(Kahc1+P40)+3*P40/(Kahc1+P40)^2-1 -> -109092.8678
G41: the concentration increased | K41: as before x= kahc*(3-z)/z z=3x/(k+x) | P41: =P40-Q40/R40 -> 4.399959688e-06 | Q41: =kwww1/P41+0.6-3*P41/(Kahc1+P41)-P41 -> 1.572233035e-11 | R41: =-kwww1/P41^2-3/(Kahc1+P41)+3*P41/(Kahc1+P41)^2-1 -> -109092.3094
C42: =G19 -> 0.0002 | D42: Initial CacetATE | E42: =G7 -> 0.1 | F42: Initial Cacetic | P42: =P41-Q41/R41 -> 4.399959688e-06 | Q42: =kwww1/P42+0.6-3*P42/(Kahc1+P42)-P42 -> -1.508396272e-17 | R42: =-kwww1/P42^2-3/(Kahc1+P42)+3*P42/(Kahc1+P42)^2-1 -> -109092.3094
A43: pKa | B43: =-LOG10(Kahc1) -> 4.754487332 | E43: 50 | F43: Initial Vacetic | O43: pH(exact)= | P43: =-LOG10(P42) -> 5.356551302
A44: Kahc | B44: =0.0000176 -> 1.76e-05 | C44: K acid | E44: Na+ | F44: x
A45: kwww | B45: =1*10^(-14) -> 1e-14 | C45: K water | E45: H+ | F45: y
C46: in water: | E46: OH- | F46: z
B47: NaAc | C47: Na+ + Ac(-) | E47: Ac- | F47: ω
B48: Hac | C48: H(+) + Ac(-) | E48: Initial pH =2,88
B49: Ac(-)+H2O | C49: Hac +OH(-)
B51: Electrical Newtrality: | D51: Na(+) + H(+) = OH(-) + Ac(-)
D52: x + y = z + ω | F52: x-ω=OH(-)-Hsy(n
B54: HYDROGEN IONS | D54: H(+) | E54: =10^(-4.75) -> 1.77827941e-05 | F54: Hsyn | G54: Hydrogen iohs
D55: khydrolysh | E55: =kwww1/Kahc1 -> 5.681818182e-10
D56: Kahc = | E56: Hsyn*Ac(-)/Hac | F56: so | G56: Hac/Ac(-)= | H56: =Hsyn1/Kahc1 -> 1.010386028
B57: HYDROXYLE | D57: OH(-) | E57: =kwww1/Hsyn1 -> 5.623413252e-10 | F57: OH(-)
D58: =kwww1/Kahc1 -> 5.681818182e-10 | E58: kHydrolysis | F58: =OH(-)*Hac/AC(-)
D59: =OH*Hsyn1 -> 1e-14 | E59: OH(-)-H(+)
D61: Hac/AC(-)= | E61: =khydrolysh/OH -> 1.010386028
D62: Na(+)=AC(-)+(OH(-)-H(+))=HAC/d+
B99: pH exact | C99: [NaAc] | D99: Percen dissociation of Hac
A100: 0 | B100: 2.880124429 | C100: 0 | D100: 1.317879102
A101: 0 | B101: 2.912820823 | C101: 0.0002 | D101: 1.222303843 | E101: 2.055517328
A102: 0 | B102: 2.945317707 | C102: 0.0004 | D102: 1.134180804 | E102: 2.356547324
A103: 0 | B103: 2.977441706 | C103: 0.0006 | D103: 1.053315061 | E103: 2.532638583
A104: 0 | B104: 3.009036994 | C104: 0.0008 | D104: 0.9794065552 | E104: 2.657577319
A105: 0 | B105: 3.039970843 | C105: 0.001 | D105: 0.9120720702
A106: 0 | B106: 3.070136626 | C106: 0.0012 | D106: 0.8508703189
A107: 0 | B107: 3.099454381 | C107: 0.0014 | D107: 0.7953268032
A108: 0 | B108: 3.127869428 | C108: 0.0016 | D108: 0.7449559139 | E108: 2.958607315
A109: 0 | B109: 3.155349636 | C109: 0.0018 | D109: 0.699278804
A110: 0 | B110: 3.18188199 | C110: 0.002 | D110: 0.6578365651
A111: 0 | B111: 3.207468959 | C111: 0.0022 | D111: 0.6201989705
A112: 0 | B112: 3.232125013 | C112: 0.0024 | D112: 0.5859694671
A113: 0 | B113: 3.255873528 | C113: 0.0026 | D113: 0.5547872504
A114: 0 | B114: 3.278744151 | C114: 0.0028 | D114: 0.5263272413
A115: 0 | B115: 3.300770657 | C115: 0.003 | D115: 0.5002986636
A116: 0 | B116: 3.321989252 | C116: 0.0032 | D116: 0.4764427772 | E116: 3.259637311
A117: 0 | B117: 3.342437281 | C117: 0.0034 | D117: 0.4545301736
A118: 0 | B118: 3.362152258 | C118: 0.0036 | D118: 0.4343579169
A119: 0 | B119: 3.381171171 | C119: 0.0038 | D119: 0.4157467171
A120: 0 | B120: 3.399529993 | C120: 0.004 | D120: 0.3985382479
A121: 0 | B121: 3.417263354 | C121: 0.0042 | D121: 0.3825926708
A122: 0 | B122: 3.434404343 | C122: 0.0044 | D122: 0.3677863929
A123: 0 | B123: 3.450984391 | C123: 0.0046 | D123: 0.3540100646
A124: 0 | B124: 3.467033229 | C124: 0.0048 | D124: 0.3411668071 | E124: 3.43572857
A125: 0 | B125: 3.482578888 | C125: 0.005 | D125: 0.3291706552
A126: 0 | B126: 3.497647733 | C126: 0.0052 | D126: 0.3179451956
A127: 0 | B127: 3.512264521 | C127: 0.0054 | D127: 0.3074223791
A128: 0 | B128: 3.526452469 | C128: 0.0056 | D128: 0.297541488
A129: 0 | B129: 3.540233338 | C129: 0.0058 | D129: 0.2882482386
A130: 0 | B130: 3.553627509 | C130: 0.006 | D130: 0.2794940015
A131: 0 | B131: 3.566654071 | C131: 0.0062 | D131: 0.2712351241
A132: 0 | B132: 3.579330906 | C132: 0.0064 | D132: 0.2634323425 | E132: 3.560667306
A133: 0 | B133: 3.591674764 | C133: 0.0066 | D133: 0.2560502689
A134: 0 | B134: 3.603701341 | C134: 0.0068 | D134: 0.2490569464
A135: 0 | B135: 3.615425356 | C135: 0.007 | D135: 0.2424234591
A136: 0 | B136: 3.626860616 | C136: 0.0072 | D136: 0.2361235935
A137: 0 | B137: 3.63802008 | C137: 0.0074 | D137: 0.2301335409
A138: 0 | B138: 3.648915922 | C138: 0.0076 | D138: 0.2244316373
A139: 0 | B139: 3.659559584 | C139: 0.0078 | D139: 0.2189981346
A140: 0 | B140: 3.66996183 | C140: 0.008 | D140: 0.2138150002 | E140: 3.657577319
A141: 0 | B141: 3.680132792 | C141: 0.0082 | D141: 0.2088657397
A142: 0 | B142: 3.690082014 | C142: 0.0084 | D142: 0.2041352409
A143: 0 | B143: 3.699818499 | C143: 0.0086 | D143: 0.1996096353
A144: 0 | B144: 3.709350737 | C144: 0.0088 | D144: 0.1952761766
A145: 0 | B145: 3.718686748 | C145: 0.009 | D145: 0.1911231313
A146: 0 | B146: 3.727834111 | C146: 0.0092 | D146: 0.1871396827
A147: 0 | B147: 3.736799995 | C147: 0.0094 | D147: 0.1833158449
A148: 0 | B148: 3.745591185 | C148: 0.0096 | D148: 0.1796423862 | E148: 3.736758565
A149: 0 | B149: 3.754214108 | C149: 0.0098 | D149: 0.1761107603
A150: 0 | B150: 3.762674858 | C150: 0.01 | D150: 0.1727130454
A151: 0 | B151: 3.770979215 | C151: 0.0102 | D151: 0.1694418891
A152: 0 | B152: 3.779132669 | C152: 0.0104 | D152: 0.1662904588
A153: 0 | B153: 3.787140432 | C153: 0.0106 | D153: 0.1632523974
A154: 0 | B154: 3.795007464 | C154: 0.0108 | D154: 0.1603217835
A155: 0 | B155: 3.802738482 | C155: 0.011 | D155: 0.1574930951
A156: 0 | B156: 3.810337976 | C156: 0.0112 | D156: 0.1547611769 | E156: 3.803705355
A157: 0 | B157: 3.817810226 | C157: 0.0114 | D157: 0.1521212109
A158: 0 | B158: 3.825159312 | C158: 0.0116 | D158: 0.1495686895
A159: 0 | B159: 3.832389124 | C159: 0.0118 | D159: 0.1470993915
A160: 0 | B160: 3.839503378 | C160: 0.012 | D160: 0.1447093597
A161: 0 | B161: 3.846505623 | C161: 0.0122 | D161: 0.142394881
A162: 0 | B162: 3.85339925 | C162: 0.0124 | D162: 0.1401524679
A163: 0 | B163: 3.860187504 | C163: 0.0126 | D163: 0.1379788422
A164: 0 | B164: 3.866873487 | C164: 0.0128 | D164: 0.1358709192 | E164: 3.861697302
A165: 0 | B165: 3.873460171 | C165: 0.013 | D165: 0.1338257941
A166: 0 | B166: 3.879950404 | C166: 0.0132 | D166: 0.1318407292
A167: 0 | B167: 3.886346913 | C167: 0.0134 | D167: 0.1299131421
A168: 0 | B168: 3.892652316 | C168: 0.0136 | D168: 0.128040595
A169: 0 | B169: 3.898869124 | C169: 0.0138 | D169: 0.1262207846
A170: 0 | B170: 3.904999748 | C170: 0.014 | D170: 0.1244515335
A171: 0 | B171: 3.911046501 | C171: 0.0142 | D171: 0.1227307812
A172: 0 | B172: 3.91701161 | C172: 0.0144 | D172: 0.121056577 | E172: 3.912849824
A173: 0 | B173: 3.922897214 | C173: 0.0146 | D173: 0.1194270725
A174: 0 | B174: 3.928705369 | C174: 0.0148 | D174: 0.1178405149
A175: 0 | B175: 3.934438056 | C175: 0.015 | D175: 0.1162952414
A176: 0 | B176: 3.940097181 | C176: 0.0152 | D176: 0.1147896732
A177: 0 | B177: 3.945684579 | C177: 0.0154 | D177: 0.1133223105
A178: 0 | B178: 3.951202022 | C178: 0.0156 | D178: 0.1118917274
A179: 0 | B179: 3.956651212 | C179: 0.0158 | D179: 0.1104965677
A180: 0 | B180: 3.962033796 | C180: 0.016 | D180: 0.1091355405 | E180: 3.958607315
A181: 0 | B181: 3.967351361 | C181: 0.0162 | D181: 0.1078074167
A182: 0 | B182: 3.972605437 | C182: 0.0164 | D182: 0.1065110249
A183: 0 | B183: 3.977797503 | C183: 0.0166 | D183: 0.1052452483
A184: 0 | B184: 3.982928989 | C184: 0.0168 | D184: 0.1040090217
A185: 0 | B185: 3.988001273 | C185: 0.017 | D185: 0.1028013284
A186: 0 | B186: 3.993015691 | C186: 0.0172 | D186: 0.1016211976
A187: 0 | B187: 3.997973533 | C187: 0.0174 | D187: 0.1004677017
A188: 0 | B188: 4.002876045 | C188: 0.0176 | D188: 0.099339954 | E188: 4
A189: 0 | B189: 4.007724437 | C189: 0.0178 | D189: 0.09823710662
A190: 0 | B190: 4.012519877 | C190: 0.018 | D190: 0.09715834825
A191: 0 | B191: 4.017263497 | C191: 0.0182 | D191: 0.09610290226
A192: 0 | B192: 4.021956392 | C192: 0.0184 | D192: 0.09507002489
A193: 0 | B193: 4.026599627 | C193: 0.0186 | D193: 0.09405900352
A194: 0 | B194: 4.031194229 | C194: 0.0188 | D194: 0.09306915507
A195: 0 | B195: 4.035741197 | C195: 0.019 | D195: 0.0920998245
A196: 0 | B196: 4.0402415 | C196: 0.0192 | D196: 0.09115038338 | E196: 4.037788561
A197: 0 | B197: 4.044696077 | C197: 0.0194 | D197: 0.09022022857
A198: 0 | B198: 4.049105839 | C198: 0.0196 | D198: 0.08930878097
A199: 0 | B199: 4.05347167 | C199: 0.0198 | D199: 0.08841548432
A200: 0 | B200: 4.05779443 | C200: 0.02 | D200: 0.08753980411
A201: 0
A202: 0
A203: 0
A204: 0
A205: 0
A206: 0
A207: 0
A208: 0
A209: 0
A210: 0
A211: 0
A212: 0
A213: 0
A214: 0
A215: 0
A216: 0
A217: 0
A218: 0
A219: 0
A220: 0
A221: 0
A222: 0
A223: 0
A224: 0
A225: 0
A226: 0
A227: 0
A228: 0
A229: 0
A230: 0
A231: 0
A232: 0
A233: 0
A234: 0
A235: 0
A236: 0
A237: 0
A238: 0
A239: 0
A240: 0
A241: 0
A242: 0
A243: 0
A244: 0
A245: 0
A246: 0
A247: 0
A248: 0
... 2 more rows
